bitfinex/quotes_SOLUSD_20240824
["timestamp","ask_amount","ask_price","bid_price","bid_amount"]
[1724464474626,22.197,152.93,152.88,0.25098]
[1724464474822,22.197,152.93,152.88,45.25098]
[1724464479006,22.197,152.93,152.89,1.27451074]
[1724464479218,22.197,152.93,152.9,0.12549]
[1724464479528,22.197,152.93,152.88,45.12549]
[1724464480131,22.197,152.93,152.88,45.0]
[1724464482639,1.63499058,152.92,152.88,45.0]
[1724464482836,1.63499058,152.92,152.87,0.12549]
[1724464483016,1.63499058,152.92,152.86,70.2009345]
[1724464483221,1.63499058,152.92,152.87,4.94994594]
[1724464483735,1.63499058,152.92,152.87,4.94995777]
[1724464484323,1.63499058,152.92,152.86,20.0]
[1724464484514,1.63499058,152.92,152.87,4.94996733]
[1724464484721,1.63499058,152.92,152.83,20.0]
[1724464484917,1.63499058,152.92,152.84,5.07546014]
[1724464485118,1.63499058,152.92,152.85,24.94997014]
[1724464485329,1.63499058,152.92,152.86,4.94997014]
[1724464485639,1.63499058,152.92,152.82,26.34726231]
[1724464486154,1.63499058,152.92,152.83,4.94919113]
[1724464486326,1.63499058,152.92,152.83,4.94919013]
[1724464486843,1.63499058,152.92,152.83,24.94919013]
[1724464487135,1.63499058,152.92,152.84,4.94919013]
[1724464487338,1.63499058,152.92,152.84,20.0]
[1724464487518,1.63499058,152.92,152.85,45.25098]
[1724464490918,1.63499058,152.92,152.85,71.59824231]
[1724464491268,22.197,152.93,152.87,26.34726231]
[1724464491432,22.197,152.93,152.88,45.12549]
[1724464491745,1.63506044,152.92,152.86,20.0]
[1724464491946,23.83215577,152.93,152.86,20.0]
[1724464492129,1.63507179,152.92,152.87,45.25098]
[1724464492332,22.197,152.93,152.87,71.59824231]
[1724464492743,22.197,152.93,152.87,26.47275231]
[1724464493948,22.197,152.93,152.89,26.34726231]
[1724464494152,22.197,152.93,152.9,1.40000291]
[1724464494327,15.6921,152.93,152.9,0.12549]
[1724464494649,21.429,152.97,152.9,0.25098]
[1724464494861,21.429,152.97,152.9,45.25098]
[1724464495149,21.429,152.97,152.9,45.12549]
[1724464495454,21.429,152.97,152.9,0.12549]
[1724464495633,21.429,152.97,152.9,45.25098]
[1724464495941,1.63467577,152.96,152.9,45.12549]
[1724464496132,1.63467577,152.96,152.9,0.12549]
[1724464496544,1.63467577,152.96,152.89,45.25098]
[1724464497550,23.06377632,152.97,152.89,45.25098]
[1724464500046,29.60107632,152.97,152.89,45.25098]
[1724464500218,29.60107632,152.97,152.88,20.0]
[1724464501355,23.06377632,152.97,152.88,20.0]
[1724464501529,1.63490541,152.96,152.88,20.0]
[1724464501850,21.429,152.97,152.9,26.34726231]
[1724464502040,21.429,152.97,152.91,1.52506077]
[1724464502247,21.429,152.97,152.92,26.34726231]
[1724464502433,21.429,152.97,152.93,1.39913445]
[1724464503152,21.429,152.97,152.93,0.12549]
[1724464503758,21.429,152.97,152.92,26.34726231]
[1724464503955,21.429,152.97,152.91,0.25098]
[1724464504252,21.429,152.97,152.91,65.25098]
[1724464505560,21.429,152.97,152.92,26.34726231]
[1724464506771,21.429,152.97,152.93,1.27384523]
[1724464507946,21.429,152.97,152.92,26.34726231]
[1724464509237,21.429,152.97,152.93,0.12549]
[1724464509943,21.429,152.97,152.94,26.34726231]
[1724464511237,21.429,152.97,152.93,0.12549]
[1724464511636,1.63441931,152.96,152.91,20.12549]
[1724464511850,21.429,152.97,152.91,20.0]
[1724464514534,1.63464153,152.96,152.91,20.0]
[1724464515330,21.429,152.97,152.91,20.0]
[1724464516858,21.429,152.97,152.92,1.27404509]
[1724464517058,21.429,152.97,152.92,27.6213074]
[1724464517278,21.429,152.97,152.93,1.27378286]
[1724464517856,21.429,152.97,152.92,26.47275231]
[1724464518169,21.429,152.97,152.93,0.12549]
[1724464520859,21.429,152.97,152.92,45.25098]
[1724464522359,21.429,152.97,152.92,0.12549]
[1724464523880,1.63451828,152.96,152.92,0.12549]
[1724464524351,1.63451828,152.96,152.89,20.0]
[1724464524548,1.63451828,152.96,152.9,45.12549]
[1724464524852,1.63451828,152.96,152.91,20.0]
[1724464525853,21.429,152.97,152.91,20.0]
[1724464527094,1.63463048,152.96,152.91,20.0]
[1724464527268,21.429,152.97,152.91,20.0]
[1724464528976,21.429,152.97,152.92,1.27412261]
[1724464529156,21.429,152.97,152.91,20.0]
[1724464533655,1.63463418,152.96,152.91,20.0]
[1724464534074,21.429,152.97,152.91,20.0]
[1724464534578,21.429,152.97,152.91,21.27413581]
[1724464535053,21.429,152.97,152.92,0.12549]
[1724464535379,21.429,152.97,152.92,26.47275231]
[1724464535552,21.429,152.97,152.92,71.47275231]
[1724464538062,21.429,152.97,152.92,45.12549]
[1724464538380,21.429,152.97,152.92,0.12549]
[1724464538667,1.63461276,152.96,152.91,20.0]
[1724464539251,1.63461276,152.96,152.9,0.12549]
[1724464539664,23.06369137,152.97,152.9,0.12549]
[1724464540875,21.429,152.97,152.9,0.12549]
[1724464545457,21.429,152.97,152.89,20.0]
[1724464545665,27.9663,152.97,152.89,20.0]
[1724464545865,22.5308,152.96,152.89,20.0]
[1724464546056,1.6348735,152.95,152.89,20.0]
[1724464547174,1.6348735,152.95,152.88,26.34726231]
[1724464547576,16.2328,152.94,152.86,26.34726231]
[1724464547776,1.63502825,152.93,152.87,20.0]
[1724464548482,16.2328,152.94,152.9,4.94959603]
[1724464548988,16.2328,152.94,152.91,4.94959603]
[1724464549274,16.2328,152.94,152.88,26.34726231]
[1724464550967,16.2328,152.94,152.89,45.25098]
[1724464551160,16.2328,152.94,152.89,0.12549]
[1724464551355,16.2328,152.94,152.89,1.40013661]
[1724464551556,16.2328,152.94,152.89,20.12549]
[1724464552158,7.93286948,152.93,152.8,15.8934]
[1724464552362,1.63521842,152.92,152.85,26.34726231]
[1724464553174,16.2328,152.91,152.85,26.34726231]
[1724464553356,1.63531507,152.9,152.85,26.34726231]
[1724464554257,17.8681146,152.91,152.85,26.34726231]
[1724464554560,16.2328,152.91,152.86,1.27577773]
[1724464557372,1.63521696,152.9,152.85,26.34726231]
[1724464557571,17.86816137,152.91,152.85,26.34726231]
[1724464561780,17.86816137,152.91,152.84,0.12549]
[1724464561978,17.86816137,152.91,152.84,20.12549]
[1724464563893,6.0998,152.9,152.84,20.12549]
[1724464564196,1.63535749,152.89,152.84,20.12549]
[1724464565184,7.73520145,152.9,152.84,20.12549]
[1724464565381,1.63539193,152.89,152.84,20.12549]
[1724464565613,7.73519107,152.9,152.84,20.12549]
[1724464565795,16.4604,152.88,152.84,20.0]
[1724464566096,16.4604,152.88,152.79,8.32416137]
[1724464566097,1.63562774,152.87,152.81,26.34726231]
[1724464566317,6.0998,152.86,152.81,26.34726231]
[1724464566591,6.0998,152.86,152.79,34.67142368]
[1724464566798,16.4604,152.84,152.79,34.67142368]
[1724464566972,16.4604,152.84,152.79,26.34726231]
[1724464570681,16.4604,152.84,152.81,26.34726231]
[1724464571006,16.4604,152.84,152.83,26.34726231]
[1724464571794,6.0998,152.86,152.83,26.34726231]
[1724464574486,6.0998,152.86,152.84,1.27625562]
[1724464575007,16.4604,152.88,152.84,1.27625562]
[1724464575393,16.4604,152.88,152.85,26.34726231]
[1724464578405,16.4604,152.88,152.83,26.47275231]
[1724464578607,16.4604,152.88,152.84,20.0]
[1724464579688,1.63549205,152.87,152.84,20.0]
[1724464581909,16.4604,152.88,152.84,20.0]
[1724464583837,1.63549094,152.87,152.84,20.0]
[1724464583991,1.63549094,152.87,152.81,26.34726231]
[1724464584186,1.63549094,152.87,152.82,20.0]
[1724464585404,18.09603721,152.88,152.83,26.34726231]
[1724464587514,16.4604,152.88,152.83,26.34726231]
[1724464588321,16.4604,152.88,152.83,27.62355084]
[1724464591995,16.4604,152.88,152.83,26.34726231]
[1724464593735,16.4604,152.88,152.83,27.62364077]
[1724464593961,16.4604,152.88,152.83,26.34726231]
[1724464596539,16.4604,152.88,152.85,26.34726231]
[1724464598854,6.0998,152.9,152.86,1.27598403]
[1724464599045,6.0998,152.9,152.87,26.34726231]
[1724464600032,6.0998,152.9,152.88,1.27554124]
[1724464600238,6.0998,152.9,152.87,26.34726231]
[1724464606746,6.0998,152.9,152.88,20.0]
[1724464607439,15.603,152.93,152.89,26.34726231]
[1724464608334,15.603,152.93,152.9,20.0]
[1724464613057,1.63491451,152.92,152.9,20.0]
[1724464613233,1.63491451,152.92,152.88,20.0]
[1724464616253,1.63491451,152.92,152.86,20.0]
[1724464616955,6.4366,152.91,152.85,26.34726231]
[1724464617250,1.63538025,152.9,152.85,26.34726231]
[1724464618153,1.63538025,152.9,152.86,20.0]
[1724464618354,6.4366,152.91,152.86,20.0]
[1724464618566,6.4366,152.91,152.87,26.34726231]
[1724464618743,6.4366,152.91,152.88,20.0]
[1724464621665,15.603,152.93,152.89,26.34726231]
[1724464621961,15.603,152.93,152.91,26.34726231]
[1724464622538,6.0232,152.95,152.91,26.34726231]
[1724464622742,6.0232,152.95,152.88,46.47275231]
[1724464622743,6.0232,152.95,152.93,26.34726231]
[1724464627162,6.0232,152.95,152.92,20.0]
[1724464627662,16.1686,152.97,152.92,21.27409134]
[1724464627837,16.1686,152.97,152.92,20.0]
[1724464628459,16.1686,152.97,152.93,27.62112765]
[1724464628936,16.1686,152.97,152.93,26.34726231]
[1724464634570,6.0232,152.99,152.95,26.34726231]
[1724464634740,6.0232,152.99,152.96,21.27301379]
[1724464636043,0.8248727,153.01,152.96,21.27301379]
[1724464636453,0.8248727,153.01,152.96,20.0]
[1724464637567,0.8248727,153.01,152.96,21.2730114]
[1724464637770,0.8248727,153.01,152.97,26.34726231]
[1724464638456,0.8248727,153.01,152.97,27.62026415]
[1724464638667,0.8248727,153.01,152.97,26.34726231]
[1724464638872,0.8248727,153.01,152.99,26.34726231]
[1724464639039,0.8248727,153.01,153.0,20.0]
[1724464641043,0.8248727,153.01,153.0,21.27223713]
[1724464642564,644.85758868,153.44,153.0,21.27223713]
[1724464642565,16.5892,153.11,153.0,66.52291048]
[1724464642758,16.5892,153.11,153.04,26.34726231]
[1724464642945,18.22234918,153.11,153.04,26.34726231]
[1724464643146,1.63314918,153.1,153.04,26.34726231]
[1724464643864,16.5892,153.11,153.02,26.34726231]
[1724464644051,1.6334055,153.1,153.03,20.0]
[1724464646454,12.5811,153.09,153.03,20.0]
[1724464646662,1.63366658,153.08,153.01,20.0]
[1724464646871,1.63367188,153.07,153.01,20.0]
[1724464648974,12.5811,153.09,153.01,20.0]
[1724464649484,12.5811,153.09,153.01,21.2718308]
[1724464650470,16.5892,153.11,153.01,21.2718308]
[1724464650471,6.0488,153.1,153.01,20.0]
[1724464650654,6.0488,153.1,153.04,26.34726231]
[1724464650854,6.0488,153.1,153.05,20.0]
[1724464651053,6.0488,153.1,153.05,21.27067473]
[1724464652368,16.5892,153.11,153.05,20.0]
[1724464652569,16.5892,153.11,153.06,1.27033307]
[1724464652761,16.5892,153.11,153.05,20.0]
[1724464653261,16.5892,153.11,153.04,0.12549]
[1724464653983,16.5892,153.11,153.04,1.39615566]
[1724464654575,16.5892,153.11,153.04,0.12549]
[1724464654876,6.0488,153.14,153.04,0.12549]
[1724464654877,6.0488,153.14,153.04,27.74342127]
[1724464655074,6.0488,153.14,153.06,26.34726231]
[1724464655383,6.0488,153.14,153.07,21.26976542]
[1724464655564,6.0488,153.14,153.08,1.26976454]
[1724464656877,6.0488,153.14,153.08,27.61702685]
[1724464657088,6.0488,153.14,153.09,20.0]
[1724464657260,6.0488,153.14,153.1,1.2695126]
[1724464657669,16.5892,153.15,153.1,1.2695126]
[1724464658024,16.5892,153.15,153.09,20.0]
[1724464658025,1.63239163,153.14,153.09,20.0]
[1724464658299,0.8248727,153.16,153.12,26.34726231]
[1724464659362,0.8248727,153.16,153.13,0.12549]
[1724464659565,0.8248727,153.16,153.11,0.12549]
[1724464659953,0.8248727,153.16,153.1,20.0]
[1724464660354,0.8248727,153.16,153.08,21.26953646]
[1724464661580,0.8248727,153.16,153.09,0.12549]
[1724464661781,0.8248727,153.16,153.09,45.12549]
[1724464661990,0.8248727,153.16,153.1,20.0]
[1724464663154,0.8248727,153.16,153.11,0.12549]
[1724464664680,0.8248727,153.16,153.11,1.3944152]
[1724464665983,0.8248727,153.16,153.11,0.12549]
[1724464668079,0.8248727,153.16,153.1,20.0]
[1724464668474,0.8248727,153.16,153.08,20.0]
[1724464668890,2.45753629,153.16,153.08,20.0]
[1724464669086,0.8248727,153.16,153.09,1.26936043]
[1724464669488,0.8248727,153.16,153.11,26.34726231]
[1724464669799,0.8248727,153.16,153.1,16.0578]
[1724464669800,0.8248727,153.16,153.14,26.34726231]
[1724464669974,0.8248727,153.16,153.15,1.26813001]
[1724464670171,0.8248727,153.16,153.15,1.39362001]
[1724464671673,0.8248727,153.16,153.15,66.51911001]
[1724464672114,0.8248727,153.16,153.15,65.25098]
[1724464673004,0.8248727,153.16,153.15,65.12549]
[1724464673180,0.8248727,153.16,153.15,20.0]
[1724464673379,0.8248727,153.16,153.13,1.26792398]
[1724464674278,0.8248727,153.16,153.11,20.0]
[1724464674778,0.8248727,153.16,153.12,45.0]
[1724464675078,0.8248727,153.16,153.13,21.51912134]
[1724464676809,0.8248727,153.16,153.15,16.0578]
[1724464677106,6.5244,153.27,153.15,82.57541944]
[1724464677307,6.5242,153.28,153.18,26.34726231]
[1724464677605,6.5242,153.28,153.19,0.25098]
[1724464677787,6.5245,153.27,153.19,66.51713194]
[1724464678292,22.3013,153.29,153.19,66.51713194]
[1724464678493,28.8249,153.29,153.19,65.25098]
[1724464678693,22.3013,153.29,153.2,27.61306263]
[1724464678884,22.3013,153.29,153.21,66.51670571]
[1724464680485,22.3013,153.29,153.21,65.25098]
[1724464680885,22.3013,153.29,153.21,45.25098]
[1724464681213,30.4559507,153.29,153.21,45.25098]
[1724464681409,22.3013,153.29,153.21,45.25098]
[1724464681602,22.3013,153.29,153.22,27.6133737]
[1724464681913,22.3013,153.29,153.23,45.25098]
[1724464682090,22.3013,153.29,153.24,1.26555301]
[1724464682692,22.3013,153.29,153.15,37.38576093]
[1724464682693,22.3013,153.29,153.19,26.34726231]
[1724464682900,22.3013,153.29,153.2,21.26580166]
[1724464683207,22.3013,153.29,153.21,1.26580873]
[1724464683933,6.5245,153.27,153.21,1.26580873]
[1724464684216,22.3013,153.29,153.2,20.12549]
[1724464684387,22.3013,153.29,153.21,0.12549]
[1724464684591,6.5248,153.26,153.21,0.12549]
[1724464684985,6.5246,153.27,153.21,0.12549]
[1724464685620,6.5249,153.26,153.17,26.34726231]
[1724464685913,6.5249,153.26,153.18,20.12549]
[1724464687291,1.63148775,153.28,153.18,20.0]
[1724464687292,6.5257,153.24,153.18,20.0]
[1724464687702,17.38937779,153.23,153.13,26.34726231]
[1724464687887,6.527,153.21,153.13,26.34726231]
[1724464689093,8.1585044,153.22,153.13,26.34726231]
[1724464689904,6.5271,153.21,153.13,26.34726231]
[1724464690229,1.63222604,153.2,153.11,26.34726231]
[1724464690811,1.63222604,153.2,153.12,20.0]
[1724464691200,6.5271,153.21,153.12,20.0]
[1724464691416,6.5271,153.21,153.13,1.26839247]
[1724464691935,6.5649,153.24,153.16,26.34726231]
[1724464692135,6.5649,153.24,153.18,26.34726231]
[1724464692306,6.5649,153.24,153.19,0.12549]
[1724464692502,6.5649,153.24,153.19,46.517611]
[1724464695625,15.7576,153.27,153.19,46.517611]
[1724464696508,15.7576,153.27,153.2,20.0]
[1724464696709,15.7576,153.27,153.21,1.39186215]
[1724464698205,15.7576,153.27,153.21,0.12549]
[1724464699231,15.7576,153.27,153.21,1.39185836]
[1724464700218,15.7576,153.27,153.21,0.12549]
[1724464701440,15.7576,153.27,153.21,1.39185815]
[1724464703029,17.38899403,153.27,153.21,0.12549]
[1724464703219,17.38899403,153.27,153.2,45.0]
[1724464703220,15.7576,153.27,153.19,20.12549]
[1724464703421,15.7576,153.27,153.2,0.12549]
[1724464703620,15.7576,153.27,153.2,1.26668368]
[1724464703944,22.2821,153.27,153.2,1.26668368]
[1724464705826,6.5249,153.26,153.2,1.26668368]
[1724464706135,6.5249,153.26,153.18,1.26678802]
[1724464706337,22.282,153.27,153.19,0.12549]
[1724464706535,22.282,153.27,153.19,21.39227717]
[1724464706720,15.7576,153.27,153.19,21.39227717]
[1724464707039,15.7576,153.27,153.2,45.12549]
[1724464707240,15.7576,153.27,153.21,1.39190285]
[1724464708246,0.8248727,153.31,153.23,26.34726231]
[1724464708541,0.8248727,153.31,153.24,66.5160201]
[1724464711043,0.8248727,153.31,153.24,65.25098]
[1724464711245,0.8248727,153.31,153.25,1.26528158]
[1724464711457,0.8248727,153.31,153.26,0.12549]
[1724464712649,0.8248727,153.31,153.25,1.26528158]
[1724464714245,0.8248727,153.31,153.25,27.61254389]
[1724464714625,0.8248727,153.31,153.25,1.26528158]
[1724464715245,0.8248727,153.31,153.26,0.25098]
[1724464715731,0.8248727,153.31,153.25,0.25098]
[1724464716952,0.8248727,153.31,153.25,1.51578032]
[1724464717951,0.8248727,153.31,153.25,0.25098]
[1724464718639,0.8248727,153.31,153.25,1.51613755]
[1724464720451,7.3475727,153.31,153.25,1.51611498]
[1724464720649,7.3475727,153.31,153.25,1.39062498]
[1724464723055,6.524,153.28,153.21,16.1288]
[1724464723359,6.524,153.28,153.2,26.34726231]
[1724464723654,6.524,153.28,153.21,1.26618592]
[1724464723854,0.8248727,153.31,153.22,16.5237]
[1724464724047,0.8248727,153.31,153.23,26.34726231]
[1724464724352,0.8248727,153.31,153.24,1.26529581]
[1724464725241,7.3478727,153.31,153.24,1.26529581]
[1724464725961,7.3478727,153.31,153.23,45.12549]
[1724464726140,7.3478727,153.31,153.24,0.12549]
[1724464726756,6.5232,153.3,153.24,1.26559261]
[1724464726953,6.5236,153.29,153.22,21.26593355]
[1724464727350,6.5236,153.29,153.22,1.26593355]
[1724464727862,1.63129554,153.28,153.19,26.34726231]
[1724464728039,6.5236,153.29,153.21,1.26613463]
[1724464728541,6.5236,153.29,153.22,0.12549]
[1724464729058,6.524,153.28,153.2,45.12549]
[1724464729233,6.524,153.28,153.21,0.12549]
[1724464730545,14.69640345,153.27,153.2,45.0]
[1724464730743,14.69640345,153.27,153.19,0.12549]
[1724464730969,13.065,153.27,153.18,66.39221407]
[1724464731963,13.065,153.27,153.19,0.12549]
[1724464732144,13.065,153.27,153.19,1.39211116]
[1724464732349,13.065,153.27,153.2,0.12549]
[1724464735760,13.065,153.27,153.19,0.12549]
[1724464735969,1.63158888,153.26,153.19,0.12549]
[1724464736151,13.065,153.27,153.19,0.12549]
[1724464736334,13.065,153.27,153.19,1.39241617]
[1724464737357,6.5249,153.26,153.19,1.39241617]
[1724464739070,6.5249,153.26,153.19,0.12549]
[1724464739764,15.5937,153.24,153.18,20.0]
[1724464739974,15.5937,153.24,153.15,28.07490961]
[1724464739975,22.1195,153.24,153.15,28.07490961]
[1724464740271,1.63175422,153.23,153.16,50.19974868]
[1724464740444,1.63175422,153.23,153.16,45.25098]
[1724464741344,8.15795422,153.23,153.17,20.0]
[1724464741745,8.15795422,153.23,153.15,26.34726231]
[1724464742050,12.5283,153.22,153.16,1.26794726]
[1724464742249,12.5283,153.22,153.13,1.26797838]
[1724464742873,6.527,153.21,153.13,1.26797838]
[1724464743377,6.527,153.21,153.13,21.26797838]
[1724464743676,6.5274,153.2,153.13,21.26797838]
[1724464743987,6.527,153.21,153.11,20.0]
[1724464744178,6.527,153.21,153.12,1.26838997]
[1724464744356,6.527,153.21,153.13,0.12549]
[1724464744770,6.527,153.21,153.13,21.39387021]
[1724464746076,6.5274,153.2,153.13,21.39387021]
[1724464746577,6.527,153.21,153.13,21.39387021]
[1724464747458,6.527,153.21,153.13,1.39387021]
[1724464748075,6.527,153.21,153.13,21.39387021]
[1724464749279,6.5274,153.2,153.13,21.26838021]
[1724464749473,6.5274,153.2,153.13,1.26838021]
[1724464750686,6.5274,153.2,153.12,1.26852633]
[1724464751089,6.5274,153.2,153.11,20.12549]
[1724464751259,6.5274,153.2,153.12,0.12549]
[1724464751977,6.5274,153.2,153.12,1.39401829]
[1724464752963,1.63229162,153.19,153.12,0.12549]
[1724464753157,6.5274,153.2,153.12,0.12549]
[1724464754287,0.76304879,153.24,153.19,3.42445989]
[1724464754496,20.4577967,153.37,153.32,11.92556247]
[1724464754786,0.8248727,153.46,153.36,26.34726231]
[1724464754976,0.8248727,153.46,153.4,26.34726231]
[1724464755281,0.8248727,153.46,153.31,543.7574]
[1724464755282,26.34726231,153.45,153.31,543.7574]
[1724464755487,0.8248727,153.46,153.41,26.34726231]
[1724464755667,0.8248727,153.46,153.38,26.34726231]
[1724464756191,1.01704343,153.45,153.38,26.34726231]
[1724464756401,0.8248727,153.46,153.4,26.34726231]
[1724464756757,0.8248727,153.46,153.42,26.34726231]
[1724464757184,0.8248727,153.46,153.32,0.12549]
[1724464757387,0.8248727,153.46,153.43,26.34726231]
[1724464757895,1.01704343,153.45,153.43,26.34726231]
[1724464758377,1.01704343,153.45,153.41,26.34726231]
[1724464759993,20.8248727,153.46,153.37,7.56000731]
[1724464760165,20.0,153.45,153.44,26.34726231]
[1724464761093,6.0474,153.58,153.44,14.41713411]
[1724464761264,15.5103,153.6,153.57,26.34726231]
[1724464761467,15.5103,153.6,153.55,26.34726231]
[1724464761686,15.5103,153.6,153.52,26.34726231]
[1724464762167,0.8248727,153.62,153.52,26.34726231]
[1724464762369,0.8248727,153.62,153.54,26.34726231]
[1724464762575,0.8248727,153.62,153.53,40.66732594]
[1724464764294,0.8248727,153.62,153.48,32.58087183]
[1724464764295,33.40574453,153.62,153.48,32.58087183]
[1724464765189,71.76098,153.61,153.48,32.58087183]
[1724464765390,1.01704343,153.6,153.48,32.58087183]
[1724464765902,1.01704343,153.6,153.5,32.58087183]
[1724464767091,0.25098,153.59,153.47,32.58087183]
[1724464767302,1.01704343,153.58,153.47,32.58087183]
[1724464767594,1.01704343,153.57,153.47,32.58087183]
[1724464768783,1.01704343,153.57,153.5,32.58087183]
[1724464771980,6.5108,153.59,153.53,32.58087183]
[1724464772177,6.5108,153.59,153.46,18.19377073]
[1724464772178,0.8248727,153.62,153.57,32.58087183]
[1724464773374,6.0474,153.63,153.57,32.58087183]
[1724464773676,6.0474,153.63,153.54,32.58087183]
[1724464773677,0.8272273,153.62,153.54,32.58087183]
[1724464773876,0.8272273,153.62,153.55,10.43051106]
[1724464774996,1.01704343,153.61,153.55,10.43051106]
[1724464775588,1.01704343,153.6,153.55,10.43051106]
[1724464775797,33.59791526,153.6,153.44,6.0797]
[1724464776102,33.59791526,153.6,153.52,10.43051106]
[1724464776103,65.25098,153.59,153.52,10.43051106]
[1724464776301,1.01704343,153.58,153.52,10.43051106]
[1724464776481,1.01704343,153.57,153.52,10.43051106]
[1724464777493,20.0,153.59,153.52,32.58087183]
[1724464777697,7.3371273,153.62,153.53,1.30264345]
[1724464777903,7.3367273,153.62,153.54,32.58087183]
[1724464778274,1.01704343,153.61,153.54,32.58087183]
[1724464778880,1.01704343,153.6,153.54,32.58087183]
[1724464779287,7.3367273,153.62,153.54,32.58087183]
[1724464779501,1.01704343,153.6,153.54,32.58087183]
[1724464780202,1.01704343,153.61,153.54,32.58087183]
[1724464780380,1.01704343,153.6,153.54,32.58087183]
[1724464780883,6.5108,153.59,153.48,32.58087183]
[1724464781206,1.01704343,153.58,153.48,42.28107178]
[1724464781394,1.01704343,153.57,153.48,42.28107178]
[1724464781981,1.01704343,153.57,153.49,7.63723189]
[1724464782802,1.01704343,153.57,153.5,32.58087183]
[1724464783385,6.5104,153.6,153.52,32.58087183]
[1724464783588,6.51,153.61,153.54,32.58087183]
[1724464784029,6.51,153.61,153.54,42.28107178]
[1724464784703,6.51,153.61,153.54,32.58087183]
[1724464784893,1.01704343,153.6,153.54,32.58087183]
[1724464790814,1.01704343,153.6,153.49,32.58087183]
[1724464790815,15.1559,153.59,153.49,32.58087183]
[1724464791003,1.01704343,153.58,153.49,42.28107178]
[1724464791188,15.1559,153.59,153.51,32.58087183]
[1724464791189,21.6667,153.59,153.51,32.58087183]
[1724464791389,21.6667,153.59,153.52,9.70019995]
[1724464794091,15.1559,153.59,153.53,32.58087183]
[1724464794297,15.1559,153.59,153.55,32.58087183]
[1724464794706,15.1559,153.59,153.53,32.58087183]
[1724464794914,1.01704343,153.58,153.53,32.58087183]
[1724464795322,1.01704343,153.57,153.53,32.58087183]
[1724464796493,1.01704343,153.57,153.53,26.06653583]
[1724464796807,15.1559,153.59,153.55,26.06653583]
[1724464798226,8.14639764,153.58,153.55,26.06653583]
[1724464798413,8.14639764,153.57,153.55,26.06653583]
[1724464798605,8.14639764,153.56,153.55,26.06653583]
[1724464799316,8.14639764,153.56,153.53,26.06653583]
[1724464799501,15.1559,153.59,153.53,26.06653583]
[1724464799502,8.14648566,153.55,153.53,26.06653583]
[1724464799704,8.14648566,153.54,153.53,26.06653583]
[1724464799903,0.8272273,153.62,153.53,26.06653583]
[1724464799904,17.3702273,153.62,153.53,36.77670423]
[1724464800105,4.99747055,153.61,153.56,26.06653583]
[1724464800318,6.01451398,153.6,153.56,26.06653583]
[1724464800525,4.99747055,153.59,153.54,35.47344772]
[1724464800708,4.99747055,153.58,153.54,35.47344772]
[1724464801024,4.99747055,153.57,153.54,35.47344772]
[1724464801227,1.01704343,153.6,153.54,35.47344772]
[1724464801413,1.01704343,153.6,153.54,9.40691189]
[1724464801414,4.99784882,153.59,153.54,9.40691189]
[1724464801725,6.01489225,153.58,153.54,9.40691189]
[1724464801921,1.01704343,153.6,153.54,9.40691189]
[1724464802122,1.01704343,153.6,153.54,35.47344772]
[1724464802325,1.01704343,153.6,153.54,9.40691189]
[1724464802530,6.51,153.61,153.54,9.40691189]
[1724464802914,6.51,153.61,153.52,26.06653583]
[1724464802915,1.01704343,153.6,153.52,26.06653583]
[1724464803135,6.51,153.61,153.54,26.06653583]
[1724464803425,23.8798273,153.62,153.55,9.40691189]
[1724464803802,1.01704343,153.61,153.55,9.40691189]
[1724464804005,6.428,153.56,153.51,9.22910078]
[1724464804199,1.01704343,153.55,153.51,9.22910078]
[1724464804936,1.01704343,153.55,153.51,35.29563661]
[1724464805142,6.428,153.56,153.51,35.29563661]
[1724464806003,23.7982273,153.62,153.55,26.06653583]
[1724464806418,1.01704343,153.61,153.57,26.06653583]
[1724464806621,23.7982273,153.62,153.57,26.06653583]
[1724464806802,1.01704343,153.61,153.57,26.06653583]
[1724464807200,1.01704343,153.61,153.54,26.06653583]
[1724464807416,23.7982273,153.62,153.52,26.06653583]
[1724464807417,1.01704343,153.6,153.52,26.06653583]
[1724464808336,6.5113,153.58,153.51,9.22910078]